[Event "Kragero Resort A 2020"]
[Site "Kragero"]
[Date "2020.02.23"]
[Round "9.18"]
[White "Sgircea, Silvia-Raluca"]
[Black "Alinasab, Mobina"]
[Result "0-1"]
[ECO "A30"]
[WhiteElo "2275"]
[BlackElo "2333"]
[Annotator "NA"]
[PlyCount "114"]
[EventDate "2020.02.19"]
[EventType "swiss"]
[EventCountry "NOR"]
[SourceTitle "playchess.com"]
[Source "ChessBase"]
[SourceQuality "1"]
[TimeControl "5400+30"]

1. Nf3 {[%emt 0:00:00]} Nf6 {[%emt 0:00:00]} 2. c4 {[%emt 0:00:00]} e6 {[%emt 0:00:04]} 3. Nc3 {[%emt 0:00:07]} c5 {[%emt 0:00:15]} 4. g3 {[%emt 0:01:01]} b6 {[%emt 0:00:08]} 5. Bg2 {[%emt 0:00:05]} Bb7 {[%emt 0:00:04]} 6. O-O {[%emt 0:00:13]} a6 {[%emt 0:00:45]} 7. d4 {[%emt 0:01:03]} cxd4 {[%emt 0:00:06]} 8. Qxd4 {[%emt 0:00:05]} d6 {[%emt 0:00:35]} 9. Rd1 {[%emt 0:00:49]} Qc7 {[%emt 0:05:14]} 10. b3 {[%emt 0:08:13]} Nbd7 {[%emt 0:01:18]} 11. e4 {[%emt 0:00:57]} Be7 {[%emt 0:00:18]} 12. Ba3 {[%emt 0:01:12]} Nc5 {[%emt 0:00:21]} 13. e5 {[%emt 0:01:25]} dxe5 {[%emt 0:01:33]} 14. Qxe5 {[%emt 0:00:02]} Qc8 {[%emt 0:09:50]} 15. Qe2 {[%emt 0:13:51] A30: Symmetrical English: Double Fianchetto and Hedgehog.} O-O {[%emt 0:00:49] [#]} 16. Bxc5 $146 {[%emt 0:23:42]} ({Predecessor:} 16. Na4 Nfd7 17. Rxd7 Qxd7 18. Nxb6 Qc7 19. Nxa8 Bxa8 20. Rd1 Qa5 21. Bxc5 Qxc5 22. Ne5 Bxg2 23. Kxg2 {1-0 (28) Salov,V (2660)-Adams,M (2630) Wijk aan Zee 1993}) 16... Qxc5 {[%emt 0:01:34]} 17. Na4 {[%emt 0:03:01]} Qc7 {[%emt 0:00:58]} 18. Qe5 {[%emt 0:01:30]} Qb8 {[%emt 0:06:13]} 19. Qxb8 {[%emt 0:00:34]} Raxb8 {[%emt 0:00:01]} 20. Ne5 {[%emt 0:01:37]} Bxg2 {[%emt 0:00:13]} 21. Kxg2 {[%emt 0:00:02]} Rfc8 {[%emt 0:00:17]} 22. Rd3 {[%emt 0:05:46]} b5 {[%emt 0:06:09]} 23. Nc3 {[%emt 0:00:22]} Rc5 {[%emt 0:04:24]} 24. f4 {[%emt 0:03:09]} Rbc8 {[%emt 0:01:47]} 25. Rad1 {[%emt 0:02:27]} h6 {[%emt 0:03:44]} 26. Kf3 {[%emt 0:01:33]} R5c7 {[%emt 0:00:26]} 27. Ne2 {[%emt 0:01:22]} bxc4 {[%emt 0:13:08]} 28. Nxc4 {[%emt 0:00:10]} a5 {[%emt 0:01:11]} 29. Nc3 {[%emt 0:03:23]} Ra8 {[%emt 0:04:44]} 30. Na4 {[%emt 0:10:32]} Nd5 {[%emt 0:01:00]} 31. R1d2 $11 {[%emt 0:05:22]} Rb8 {[%emt 0:01:15]} 32. Ne3 {[%emt 0:01:23]} Nxe3 {[%emt 0:03:50]} 33. Kxe3 {[%emt 0:00:02]} e5 {[%emt 0:00:17]} 34. Rd7 {[%emt 0:01:29]} exf4+ {[%emt 0:01:31]} 35. Kxf4 {[%emt 0:00:32]} Bg5+ {[%emt 0:00:34]} 36. Kf3 {[%emt 0:00:02]} Rc1 {[%emt 0:00:54]} 37. Re2 {[%emt 0:01:15]} Rb5 {[%emt 0:02:28]} 38. Rd3 {[%emt 0:01:26]} Rf5+ {[%emt 0:00:56]} 39. Kg2 {[%emt 0:00:01]} Rff1 {[%emt 0:02:12]} 40. Rc3 {[%emt 0:00:40]} Rg1+ {[%emt 0:00:09]} 41. Kh3 {[%emt 0:00:01]} Rcd1 {[%emt 0:01:07]} 42. Rc5 {[%emt 0:02:06]} Rd4 {[%emt 0:06:23]} 43. Nb2 {[%emt 0:03:46]} Bf6 {[%emt 0:06:25]} 44. Rc4 {[%emt 0:01:33]} Rd5 {[%emt 0:03:11]} 45. Kg4 {[%emt 0:01:05]} h5+ {[%emt 0:00:05]} 46. Kf3 {[%emt 0:00:05]} Rf5+ {[%emt 0:00:08]} 47. Ke3 {[%emt 0:01:46]} Rgf1 {[%emt 0:03:24]} 48. Kd3 {[%emt 0:01:39]} R5f3+ {[%emt 0:03:35]} 49. Kc2 {[%emt 0:00:20]} Ra1 {[%emt 0:01:25]} 50. Ra4 {[%emt 0:01:25]} Rc3+ {[%emt 0:00:06]} 51. Kd2 {[%emt 0:00:01]} Rcc1 {[%emt 0:06:29]} 52. Re8+ {[%emt 0:01:01]} Kh7 {[%emt 0:00:07]} 53. Nd3 {[%emt 0:00:04]} Bg5+ {[%emt 0:00:31]} 54. Nf4 {[%emt 0:00:36]} Rd1+ {[%emt 0:00:15]} 55. Kc2 {[%emt 0:00:02]} Rac1+ {[%emt 0:00:44]} 56. Kb2 {[%emt 0:00:01]} Bf6+ {[%emt 0:00:15]} 57. Ka3 {[%emt 0:00:01]} Rd2 {[%emt 0:00:29]} 0-1

[Event "Kragero Resort A 2020"]
[Site "Kragero"]
[Date "2020.02.23"]
[Round "9.19"]
[White "Holleland, Sigve"]
[Black "Radeva, Viktoria"]
[Result "0-1"]
[ECO "D31"]
[WhiteElo "2076"]
[BlackElo "2320"]
[Annotator "ChessBase"]
[PlyCount "70"]
[EventDate "2020.02.19"]
[EventType "swiss"]
[EventCountry "NOR"]
[SourceTitle "playchess.com"]
[Source "ChessBase"]
[SourceQuality "1"]
[TimeControl "5400+30"]

1. d4 {[%emt 0:00:00]} d5 {[%emt 0:01:24]} 2. c4 {[%emt 0:00:00]} e6 {[%emt 0:00:05]} 3. Nc3 {[%emt 0:00:00]} c6 {[%emt 0:01:25]} 4. e4 {[%emt 0:01:45]} Bb4 {[%emt 0:00:40]} 5. Bd2 {[%emt 0:01:35]} Ne7 {[%emt 0:08:35]} 6. a3 {[%emt 0:01:33]} Bxc3 {[%emt 0:04:27]} 7. Bxc3 {[%emt 0:00:17]} O-O {[%emt 0:02:18]} 8. Bd3 {[%emt 0:04:41]} b6 {[%emt 0:02:57]} 9. b3 {[%emt 0:04:51]} Bb7 {[%emt 0:04:55]} 10. Nf3 {[%emt 0:03:54]} Nd7 {[%emt 0:05:06]} 11. O-O {[%emt 0:12:48]} Rc8 {[%emt 0:08:41]} 12. Re1 {[%emt 0:04:35]} h6 {[%emt 0:07:39]} 13. Re3 {[%emt 0:12:33]} Nf6 {[%emt 0:11:56]} 14. e5 {[%emt 0:06:46]} Ne8 {[%emt 0:02:18]} 15. c5 {[%emt 0:09:08]} Rb8 {[%emt 0:05:47]} 16. g4 {[%emt 0:04:38]} Ng6 {[%emt 0:06:37]} 17. Bxg6 {[%emt 0:01:51]} fxg6 {[%emt 0:00:07]} 18. Qd3 {[%emt 0:00:55]} g5 {[%emt 0:01:30]} 19. Kg2 {[%emt 0:05:45]} Rf4 {[%emt 0:01:46]} 20. Kg3 {[%emt 0:01:15]} Nc7 {[%emt 0:05:22]} 21. h4 {[%emt 0:00:31]} Ba6 {[%emt 0:01:46]} 22. Qg6 {[%emt 0:02:04]} Qf8 {[%emt 0:03:07]} 23. hxg5 {[%emt 0:01:06]} Be2 {[%emt 0:00:09]} 24. Rxe2 {[%emt 0:04:59]} Rxf3+ {[%emt 0:00:05]} 25. Kg2 {[%emt 0:00:15]} Rxc3 {[%emt 0:02:04]} 26. gxh6 {[%emt 0:00:42]} bxc5 {[%emt 0:01:51]} 27. f4 {[%emt 0:04:33]} Rbxb3 {[%emt 0:01:29]} 28. Rf2 {[%emt 0:01:24]} Rg3+ {[%emt 0:02:35]} 29. Kf1 {[%emt 0:01:46]} Rh3 {[%emt 0:00:15]} 30. g5 {[%emt 0:01:22]} Qf7 {[%emt 0:02:55]} 31. h7+ {[%emt 0:00:45]} Rxh7 {[%emt 0:00:09]} 32. Qc2 {[%emt 0:00:44]} Rg3 {[%emt 0:01:21]} 33. Rb1 {[%emt 0:00:36]} Rh1+ {[%emt 0:00:19]} 34. Ke2 {[%emt 0:00:06]} Rxb1 {[%emt 0:01:16]} 35. Rh2 {[%emt 0:00:14]} Qf5 {[%emt 0:00:22]} 0-1

[Event "Kragero Resort A 2020"]
[Site "Kragero"]
[Date "2020.02.23"]
[Round "9.20"]
[White "Brodtkorb, Lars Johan"]
[Black "Lie, Espen"]
[Result "1/2-1/2"]
[ECO "D40"]
[WhiteElo "2179"]
[BlackElo "2490"]
[Annotator "ChessBase"]
[PlyCount "100"]
[EventDate "2020.02.19"]
[EventType "swiss"]
[EventCountry "NOR"]
[SourceTitle "playchess.com"]
[Source "ChessBase"]
[SourceQuality "1"]
[TimeControl "5400+30"]

1. d4 {[%emt 0:02:41]} d5 {[%emt 0:00:00]} 2. c4 {[%emt 0:00:24]} e6 {[%emt 0:00:04]} 3. Nc3 {[%emt 0:00:35]} c5 {[%emt 0:00:07]} 4. e3 {[%emt 0:01:02]} Nf6 {[%emt 0:00:34]} 5. Nf3 {[%emt 0:00:20]} a6 {[%emt 0:00:56]} 6. dxc5 {[%emt 0:03:38]} Bxc5 {[%emt 0:00:44]} 7. cxd5 {[%emt 0:03:21]} exd5 {[%emt 0:00:41]} 8. a3 {[%emt 0:00:33]} O-O {[%emt 0:05:08]} 9. b4 {[%emt 0:00:27]} Ba7 {[%emt 0:00:25]} 10. Bb2 {[%emt 0:02:37]} Nc6 {[%emt 0:02:38]} 11. Be2 {[%emt 0:00:37]} d4 {[%emt 0:05:18]} 12. exd4 {[%emt 0:00:12]} Nxd4 {[%emt 0:00:15]} 13. Nxd4 {[%emt 0:00:20]} Bxd4 {[%emt 0:02:30]} 14. O-O {[%emt 0:01:06]} Be6 {[%emt 0:03:30]} 15. Rc1 {[%emt 0:05:42]} Qd7 {[%emt 0:09:06]} 16. Na4 {[%emt 0:07:33]} Bxb2 {[%emt 0:01:02]} 17. Nxb2 {[%emt 0:00:17]} Bd5 {[%emt 0:10:23]} 18. Na4 {[%emt 0:00:48]} Rad8 {[%emt 0:01:51]} 19. Nb6 {[%emt 0:07:37]} Qe7 {[%emt 0:08:23]} 20. Nxd5 {[%emt 0:10:42]} Nxd5 {[%emt 0:06:49]} 21. Qc2 {[%emt 0:00:21]} Nf4 {[%emt 0:04:16]} 22. Bf3 {[%emt 0:03:52]} Rd3 {[%emt 0:01:53]} 23. Rfe1 {[%emt 0:00:20]} Qg5 {[%emt 0:01:51]} 24. Re3 {[%emt 0:09:59]} Nh3+ {[%emt 0:04:12]} 25. Kf1 {[%emt 0:00:11]} Rxe3 {[%emt 0:00:25]} 26. fxe3 {[%emt 0:00:04]} Qxe3 {[%emt 0:00:35]} 27. Qc5 {[%emt 0:02:42]} Qxa3 {[%emt 0:03:30]} 28. Qc3 {[%emt 0:00:27]} Qxc3 {[%emt 0:00:21]} 29. Rxc3 {[%emt 0:00:02]} Nf4 {[%emt 0:00:56]} 30. Rc4 {[%emt 0:09:11]} Nd3 {[%emt 0:01:44]} 31. Bxb7 {[%emt 0:01:21]} Rb8 {[%emt 0:00:43]} 32. Ke2 {[%emt 0:00:56]} g6 {[%emt 0:00:55]} 33. Kxd3 {[%emt 0:01:09]} Rxb7 {[%emt 0:00:07]} 34. Rc8+ {[%emt 0:01:34]} Kg7 {[%emt 0:00:06]} 35. Kc4 {[%emt 0:00:04]} Rb6 {[%emt 0:00:26]} 36. Kc5 {[%emt 0:00:47]} Rb5+ {[%emt 0:00:40]} 37. Kc4 {[%emt 0:00:02]} Rh5 {[%emt 0:04:29]} 38. h3 {[%emt 0:01:16]} Rg5 {[%emt 0:00:14]} 39. Ra8 {[%emt 0:03:48]} Rxg2 {[%emt 0:00:32]} 40. Rxa6 {[%emt 0:00:06]} g5 {[%emt 0:00:28]} 41. b5 {[%emt 0:03:38]} Rb2 {[%emt 0:02:22]} 42. Ra4 {[%emt 0:07:53]} h5 {[%emt 0:00:41]} 43. Kc5 {[%emt 0:06:03]} g4 {[%emt 0:05:01]} 44. hxg4 {[%emt 0:00:17]} h4 {[%emt 0:00:07]} 45. b6 {[%emt 0:02:07]} h3 {[%emt 0:05:42]} 46. Ra3 {[%emt 0:00:06]} Rc2+ {[%emt 0:00:11]} 47. Kd6 {[%emt 0:00:40]} Rd2+ {[%emt 0:00:39]} 48. Kc7 {[%emt 0:00:42]} Rc2+ {[%emt 0:00:14]} 49. Kd6 {[%emt 0:00:53]} Rd2+ {[%emt 0:00:07]} 50. Kc7 {[%emt 0:00:06]} Rc2+ {[%emt 0:00:08]} 1/2-1/2

[Event "Kragero Resort A 2020"]
[Site "Kragero"]
[Date "2020.02.23"]
[Round "9.21"]
[White "Haug, Johannes"]
[Black "Sjoberg, Isak"]
[Result "1-0"]
[ECO "E71"]
[WhiteElo "2426"]
[BlackElo "2218"]
[Annotator "ChessBase"]
[PlyCount "55"]
[EventDate "2020.02.19"]
[EventType "swiss"]
[EventCountry "NOR"]
[SourceTitle "playchess.com"]
[Source "ChessBase"]
[SourceQuality "1"]
[TimeControl "5400+30"]

1. d4 {[%emt 0:00:00]} Nf6 {[%emt 0:00:00]} 2. c4 {[%emt 0:00:00]} g6 {[%emt 0:00:00]} 3. Nc3 {[%emt 0:00:00]} Bg7 {[%emt 0:00:00]} 4. e4 {[%emt 0:00:00]} d6 {[%emt 0:00:00]} 5. h3 {[%emt 0:00:00]} O-O {[%emt 0:00:00]} 6. Be3 {[%emt 0:00:00]} e5 {[%emt 0:02:37]} 7. d5 {[%emt 0:01:25]} a5 {[%emt 0:04:00]} 8. g4 {[%emt 0:00:26]} Na6 {[%emt 0:00:04]} 9. Nge2 {[%emt 0:00:07]} Nd7 {[%emt 0:07:09]} 10. h4 {[%emt 0:00:20]} Ndc5 {[%emt 0:16:56]} 11. Ng3 {[%emt 0:00:58]} Bd7 {[%emt 0:00:47]} 12. Be2 {[%emt 0:03:31]} Qc8 {[%emt 0:08:46]} 13. h5 {[%emt 0:03:52]} Rb8 {[%emt 0:04:50]} 14. Rh4 {[%emt 0:12:56]} Qd8 {[%emt 0:04:13]} 15. Rh3 {[%emt 0:05:54]} Qc8 {[%emt 0:01:43]} 16. Rh4 {[%emt 0:03:46]} Qd8 {[%emt 0:01:27]} 17. Rh1 {[%emt 0:00:29]} Qc8 {[%emt 0:00:05]} 18. g5 {[%emt 0:01:45]} Re8 {[%emt 0:06:58]} 19. Qd2 {[%emt 0:05:17]} c6 {[%emt 0:03:48]} 20. Kf1 {[%emt 0:13:46]} cxd5 {[%emt 0:03:53]} 21. Nxd5 {[%emt 0:04:38]} Qd8 {[%emt 0:01:16]} 22. Kg2 {[%emt 0:11:53]} b5 {[%emt 0:00:43]} 23. Rh4 {[%emt 0:07:44]} Nc7 {[%emt 0:06:28]} 24. Nf6+ {[%emt 0:02:50]} Bxf6 {[%emt 0:00:16]} 25. gxf6 {[%emt 0:00:01]} N5e6 {[%emt 0:03:00]} 26. hxg6 {[%emt 0:04:03]} hxg6 {[%emt 0:00:01]} 27. Bg5 {[%emt 0:01:00]} Nf4+ {[%emt 0:01:50]} 28. Qxf4 {[%emt 0:01:27]} 1-0

[Event "Kragero Resort A 2020"]
[Site "Kragero"]
[Date "2020.02.23"]
[Round "9.22"]
[White "Bergsson, Stefan"]
[Black "Vestby-Ellingsen, Mads"]
[Result "1-0"]
[ECO "B43"]
[WhiteElo "2172"]
[BlackElo "2357"]
[Annotator "ChessBase"]
[PlyCount "91"]
[EventDate "2020.02.19"]
[EventType "swiss"]
[EventCountry "NOR"]
[SourceTitle "playchess.com"]
[Source "ChessBase"]
[SourceQuality "1"]
[TimeControl "5400+30"]

1. e4 {[%emt 0:00:00]} c5 {[%emt 0:00:00]} 2. Nf3 {[%emt 0:00:00]} e6 {[%emt 0:00:02]} 3. d4 {[%emt 0:00:00]} cxd4 {[%emt 0:00:10]} 4. Nxd4 {[%emt 0:00:00]} Nc6 {[%emt 0:00:12]} 5. Nc3 {[%emt 0:00:00]} Qc7 {[%emt 0:00:10]} 6. Be3 {[%emt 0:00:00]} a6 {[%emt 0:00:08]} 7. f4 {[%emt 0:00:00]} b5 {[%emt 0:00:10]} 8. Qf3 {[%emt 0:00:00]} Bb7 {[%emt 0:04:11]} 9. Bd3 {[%emt 0:00:36]} Nf6 {[%emt 0:03:37]} 10. O-O-O {[%emt 0:00:54]} Be7 {[%emt 0:05:41]} 11. g4 {[%emt 0:02:14]} b4 {[%emt 0:10:24]} 12. Nce2 {[%emt 0:00:17]} d5 {[%emt 0:02:10]} 13. e5 {[%emt 0:04:01]} Ne4 {[%emt 0:02:24]} 14. Nxc6 {[%emt 0:00:49]} Bxc6 {[%emt 0:00:27]} 15. Nd4 {[%emt 0:00:34]} Bb7 {[%emt 0:03:47]} 16. Kb1 {[%emt 0:01:45]} g5 {[%emt 0:10:34]} 17. h4 {[%emt 0:00:27]} gxf4 {[%emt 0:06:21]} 18. Qxf4 {[%emt 0:00:53]} Bc5 {[%emt 0:00:36]} 19. Rhf1 {[%emt 0:07:41]} Rf8 {[%emt 0:01:18]} 20. Nf3 {[%emt 0:26:01]} O-O-O {[%emt 0:05:50]} 21. Bxc5 {[%emt 0:06:04]} Qxc5 {[%emt 0:00:09]} 22. Ng5 {[%emt 0:03:32]} Kb8 {[%emt 0:13:39]} 23. Nxh7 {[%emt 0:03:58]} Rh8 {[%emt 0:00:13]} 24. Nf6 {[%emt 0:05:26]} Nxf6 {[%emt 0:03:17]} 25. Qxf6 {[%emt 0:01:49]} a5 {[%emt 0:00:22]} 26. h5 {[%emt 0:01:16]} a4 {[%emt 0:00:23]} 27. Qxf7 {[%emt 0:02:39]} a3 {[%emt 0:00:39]} 28. Bg6 {[%emt 0:07:23]} Rhf8 {[%emt 0:02:24]} 29. Qxe6 {[%emt 0:04:29]} Rxf1 {[%emt 0:00:10]} 30. Rxf1 {[%emt 0:00:01]} Qd4 {[%emt 0:00:18]} 31. c3 {[%emt 0:02:22]} Qd2 {[%emt 0:00:55]} 32. Bc2 {[%emt 0:00:31]} Ka7 {[%emt 0:15:35]} 33. Qe7 {[%emt 0:00:43]} Qe2 {[%emt 0:03:53]} 34. Rd1 {[%emt 0:01:11]} b3 {[%emt 0:02:36]} 35. axb3 {[%emt 0:03:32]} a2+ {[%emt 0:00:10]} 36. Kxa2 {[%emt 0:00:02]} Qxc2 {[%emt 0:00:16]} 37. Rd4 {[%emt 0:00:04]} Rc8 {[%emt 0:02:04]} 38. Ra4+ {[%emt 0:02:49]} Kb8 {[%emt 0:00:14]} 39. Rb4 {[%emt 0:00:59]} Rc7 {[%emt 0:00:08]} 40. Qd8+ {[%emt 0:01:14]} Rc8 {[%emt 0:00:10]} 41. Qd6+ {[%emt 0:00:42]} Rc7 {[%emt 0:00:08]} 42. Qxd5 {[%emt 0:02:09]} Qf2 {[%emt 0:00:34]} 43. Qd8+ {[%emt 0:00:33]} Rc8 {[%emt 0:00:13]} 44. Qd6+ {[%emt 0:00:18]} Rc7 {[%emt 0:00:11]} 45. h6 {[%emt 0:01:56]} Qh2 {[%emt 0:01:02]} 46. Rc4 {[%emt 0:01:04]} 1-0

[Event "Kragero Resort A 2020"]
[Site "Kragero"]
[Date "2020.02.23"]
[Round "9.23"]
[White "Stefansson, Vignir Vatnar"]
[Black "Fossan, Aleksander"]
[Result "1/2-1/2"]
[ECO "E60"]
[WhiteElo "2323"]
[BlackElo "2193"]
[Annotator "ChessBase"]
[PlyCount "41"]
[EventDate "2020.02.19"]
[EventType "swiss"]
[EventCountry "NOR"]
[SourceTitle "playchess.com"]
[Source "ChessBase"]
[SourceQuality "1"]
[TimeControl "5400+30"]

1. d4 {[%emt 0:00:00]} Nf6 {[%emt 0:00:16]} 2. Nf3 {[%emt 0:00:00]} g6 {[%emt 0:01:21]} 3. c4 {[%emt 0:00:00]} Bg7 {[%emt 0:00:07]} 4. e3 {[%emt 0:00:00]} O-O {[%emt 0:00:41]} 5. Be2 {[%emt 0:00:01]} d5 {[%emt 0:03:46]} 6. cxd5 {[%emt 0:00:06]} Nxd5 {[%emt 0:00:28]} 7. e4 {[%emt 0:00:05]} Nb6 {[%emt 0:01:07]} 8. O-O {[%emt 0:00:02]} Bg4 {[%emt 0:02:24]} 9. Nbd2 {[%emt 0:00:05]} N8d7 {[%emt 0:18:19]} 10. h3 {[%emt 0:07:17]} Bxf3 {[%emt 0:00:07]} 11. Nxf3 {[%emt 0:00:06]} c5 {[%emt 0:00:45]} 12. d5 {[%emt 0:03:59]} Ne5 {[%emt 0:02:37]} 13. Nxe5 {[%emt 0:00:38]} Bxe5 {[%emt 0:00:03]} 14. Be3 {[%emt 0:13:56]} Qd6 {[%emt 0:03:49]} 15. Rc1 {[%emt 0:03:00]} Nd7 {[%emt 0:12:33]} 16. Qd2 {[%emt 0:02:51]} Rac8 {[%emt 0:05:16]} 17. Bb5 {[%emt 0:06:53]} Nb6 {[%emt 0:11:34]} 18. b3 {[%emt 0:04:22]} f5 {[%emt 0:02:22]} 19. f4 {[%emt 0:12:23]} Bd4 {[%emt 0:00:05]} 20. Bxd4 {[%emt 0:00:06]} cxd4 {[%emt 0:00:08]} 21. Rxc8 {[%emt 0:10:59]} 1/2-1/2

[Event "Kragero Resort A 2020"]
[Site "Kragero"]
[Date "2020.02.23"]
[Round "9.24"]
[White "Doluhanova, Evgeniya"]
[Black "Tunsjo, Axel"]
[Result "1/2-1/2"]
[ECO "A06"]
[WhiteElo "2258"]
[BlackElo "2035"]
[Annotator "NA"]
[PlyCount "116"]
[EventDate "2020.02.19"]
[EventType "swiss"]
[EventCountry "NOR"]
[SourceTitle "playchess.com"]
[Source "ChessBase"]
[SourceQuality "1"]
[TimeControl "5400+30"]

1. Nf3 {[%emt 0:03:27]} Nf6 {[%emt 0:00:00]} 2. b3 {[%emt 0:00:09]} e6 {[%emt 0:00:10]} 3. Bb2 {[%emt 0:00:05]} d5 {[%emt 0:00:03]} 4. e3 {[%emt 0:00:04]} Be7 {[%emt 0:00:20]} 5. Be2 {[%emt 0:01:42]} O-O {[%emt 0:00:10]} 6. O-O {[%emt 0:00:08]} b6 {[%emt 0:00:24] A06: Réti Opening: 1 Nf3 d5.} 7. d3 {[%emt 0:00:55]} Bb7 {[%emt 0:00:46]} 8. Ne5 {[%emt 0:02:49]} c5 {[%emt 0:02:19]} 9. Nd2 {[%emt 0:00:40]} Nc6 {[%emt 0:05:15]} 10. f4 {[%emt 0:02:00]} d4 {[%emt 0:01:00]} 11. Nxc6 {[%emt 0:11:01]} Bxc6 {[%emt 0:00:16]} 12. e4 {[%emt 0:00:06]} Nd7 {[%emt 0:00:11] [#]} 13. Qe1 $146 {[%emt 0:00:26]} ({Predecessor:} 13. Bg4 f5 14. Bf3 Nf6 15. Qe2 Qd7 16. Rae1 Rae8 17. a4 Bd8 18. Nc4 Bb7 19. Ne5 {½-½ (29) Hedin,G (2174)-Giulian,P (2124) Walbrzych 2018}) 13... f5 {[%emt 0:03:16]} ({Black should play} 13... e5 $15) 14. Bf3 {[%emt 0:00:45]} Kh8 {[%emt 0:10:24]} 15. c3 {[%emt 0:06:27]} dxc3 {[%emt 0:02:47]} 16. Bxc3 {[%emt 0:01:28]} Nf6 {[%emt 0:01:25]} 17. Nc4 {[%emt 0:08:46]} Rc8 {[%emt 0:02:23]} 18. Rd1 {[%emt 0:00:32]} Qc7 {[%emt 0:01:57]} 19. Be5 {[%emt 0:04:21]} Qd7 {[%emt 0:01:45]} 20. a4 {[%emt 0:06:22]} Rcd8 {[%emt 0:01:28]} 21. Qc3 {[%emt 0:12:11]} Qb7 {[%emt 0:03:20]} 22. Rde1 {[%emt 0:02:22]} Rd7 {[%emt 0:04:40]} 23. exf5 {[%emt 0:05:28]} exf5 {[%emt 0:01:07]} 24. Ne3 {[%emt 0:00:25]} g6 {[%emt 0:08:30]} 25. h3 {[%emt 0:04:04]} Bxf3 {[%emt 0:09:38]} 26. Rxf3 {[%emt 0:00:07]} Kg8 {[%emt 0:01:42]} 27. Qc4+ {[%emt 0:02:32]} Nd5 $11 {[%emt 0:00:31]} 28. g4 {[%emt 0:08:29]} fxg4 {[%emt 0:01:20]} 29. Nxg4 {[%emt 0:07:51]} h5 {[%emt 0:01:21]} 30. Qe4 {[%emt 0:00:05]} Nxf4 {[%emt 0:02:14]} 31. Rxf4 {[%emt 0:07:53]} Qxe4 {[%emt 0:00:39]} 32. Rexe4 {[%emt 0:00:18]} hxg4 {[%emt 0:00:50]} 33. Rxg4 {[%emt 0:00:03]} Kh7 {[%emt 0:01:04]} 34. d4 {[%emt 0:02:18]} Rf3 {[%emt 0:01:56]} 35. dxc5 {[%emt 0:00:17]} Bxc5+ {[%emt 0:00:27]} 36. Kg2 {[%emt 0:00:51]} Rf2+ {[%emt 0:00:08]} 37. Kg3 {[%emt 0:00:22]} Rd3+ {[%emt 0:00:09]} 38. Kh4 {[%emt 0:00:02]} Be7+ {[%emt 0:00:06]} 39. Rg5 {[%emt 0:00:11]} Rd5 {[%emt 0:01:23]} 40. Kg3 {[%emt 0:00:31]} Bxg5 {[%emt 0:08:11]} 41. Kxf2 {[%emt 0:00:07]} Rd3 {[%emt 0:03:44]} 42. h4 {[%emt 0:00:25]} Bd8 {[%emt 0:01:31]} 43. b4 {[%emt 0:00:39]} a5 {[%emt 0:00:32]} 44. b5 {[%emt 0:01:30]} Kh6 {[%emt 0:01:19]} 45. Bf4+ {[%emt 0:00:42]} Kh5 {[%emt 0:00:35]} 46. Bg3 {[%emt 0:00:15]} Bf6 {[%emt 0:02:11]} 47. Re6 {[%emt 0:00:38]} Bd4+ {[%emt 0:01:07]} 48. Kg2 {[%emt 0:00:05]} Ra3 {[%emt 0:01:21]} 49. Re4 {[%emt 0:00:05]} Bc5 {[%emt 0:01:01]} 50. Re5+ {[%emt 0:01:18]} Kh6 {[%emt 0:00:05]} 51. Bf4+ {[%emt 0:00:05]} Kg7 {[%emt 0:00:23]} 52. Re4 {[%emt 0:00:09]} Kf6 {[%emt 0:01:03]} 53. Bg5+ {[%emt 0:00:26]} Kf5 {[%emt 0:00:27]} 54. Rf4+ {[%emt 0:00:15]} Ke5 {[%emt 0:00:07]} 55. Rg4 {[%emt 0:00:54]} Kf5 {[%emt 0:01:03]} 56. Rf4+ {[%emt 0:00:27]} Ke5 {[%emt 0:00:08]} 57. Rg4 {[%emt 0:01:11]} Kf5 {[%emt 0:00:24]} 58. Rf4+ {[%emt 0:00:38]} Ke5 {[%emt 0:00:07]} 1/2-1/2

[Event "Kragero Resort A 2020"]
[Site "Kragero"]
[Date "2020.02.23"]
[Round "9.25"]
[White "Bergvoll, Mats"]
[Black "Van Dael, Siem"]
[Result "1/2-1/2"]
[ECO "E73"]
[WhiteElo "2059"]
[BlackElo "2257"]
[Annotator "ChessBase"]
[PlyCount "46"]
[EventDate "2020.02.19"]
[EventType "swiss"]
[EventCountry "NOR"]
[SourceTitle "playchess.com"]
[Source "ChessBase"]
[SourceQuality "1"]
[TimeControl "5400+30"]

1. d4 {[%emt 0:00:00]} Nf6 {[%emt 0:00:00]} 2. c4 {[%emt 0:00:00]} g6 {[%emt 0:00:01]} 3. Nc3 {[%emt 0:00:16]} Bg7 {[%emt 0:00:07]} 4. e4 {[%emt 0:00:10]} d6 {[%emt 0:00:05]} 5. Be2 {[%emt 0:00:33]} e5 {[%emt 0:04:16]} 6. d5 {[%emt 0:00:33]} a5 {[%emt 0:00:11]} 7. Be3 {[%emt 0:00:21]} Na6 {[%emt 0:00:13]} 8. g4 {[%emt 0:01:46]} Nc5 {[%emt 0:00:55]} 9. f3 {[%emt 0:00:17]} h5 {[%emt 0:03:14]} 10. g5 {[%emt 0:00:20]} Nfd7 {[%emt 0:00:37]} 11. h4 {[%emt 0:01:18]} a4 {[%emt 0:01:42]} 12. Qd2 {[%emt 0:02:44]} Nb6 {[%emt 0:01:21]} 13. Nh3 {[%emt 0:06:11]} Bd7 {[%emt 0:01:36]} 14. Nf2 {[%emt 0:07:21]} Qb8 {[%emt 0:00:21]} 15. Rc1 {[%emt 0:11:04]} O-O {[%emt 0:00:14]} 16. Nb5 {[%emt 0:03:40]} Kh7 {[%emt 0:01:42]} 17. Qb4 {[%emt 0:09:48]} Na6 {[%emt 0:04:23]} 18. Qd2 {[%emt 0:01:15]} Nc5 {[%emt 0:00:31]} 19. Qb4 {[%emt 0:00:49]} Na6 {[%emt 0:01:08]} 20. Qd2 {[%emt 0:01:16]} Nc8 {[%emt 0:00:06]} 21. Nd3 {[%emt 0:02:21]} c6 {[%emt 0:00:20]} 22. Nc3 {[%emt 0:02:55]} cxd5 {[%emt 0:00:29]} 23. Nxd5 {[%emt 0:00:54]} Nc7 {[%emt 0:02:27]} 1/2-1/2